Cogmind - Beta 14 @@@ ROGUE MODE // 2024.09.09 @ 21:23:54 Player: Maulwurf Result: Destroyed by L-41 Fighter with Axe Performance ------------- Evolutions (1) 500 Regions Visited (5) 1000 Robots Destroyed (16) 80 Value Destroyed (523) 523 Prototype IDs (0) 0 Alien Tech Used (0) 0 Bonus (600) 600 TOTAL SCORE: 2703 Bonus ------- Met Imprinter 300 Was Imprinted 300 Cogmind --------- Core Integrity 0/400 Matter 272/300 Energy 100/100 System Corruption 0% Temperature Cool (0) Movement Core (350) Ox6 Location -6/Proximity Caves Parts ------- > --- POWER (1) -------- (None) > --- PROPULSION (3) --- (None) > --- UTILITY (3) ------ Large Storage Unit Signal Interpreter Advanced Terrain Scan Processor > --- WEAPON (2) ------- (None) > --- INVENTORY (15) --- Ion Engine Light Ion Engine Light Ion Engine Improved Treads Improved Treads Improved Treads Armored Treads Small Storage Unit Experimental Target Analyzer Improved Medium Armor Plating Makeshift Light Armor Plating Hacking Drone Bay EMP Blaster Mini Grenade Launcher Peak State ------------ > --- POWER ------------ Makeshift Power Source > --- PROPULSION ------- Light Treads Improved Treads Improved Treads > --- UTILITY ---------- Large Storage Unit Signal Interpreter Advanced Terrain Scan Processor > --- WEAPON ----------- Grenade Launcher Rocket Launcher > --- INVENTORY -------- Ion Engine Light Ion Engine Light Ion Engine Improved Treads Improved Treads Improved Treads Armored Treads Small Storage Unit Experimental Target Analyzer Improved Medium Armor Plating Makeshift Light Armor Plating Hacking Drone Bay EMP Blaster Mini Grenade Launcher [Rating: 22] Favorites ----------- Power Light Ion Engine Engine Light Ion Engine Propulsion Improved Treads Treads Improved Treads Leg Aluminum Leg Utility Signal Interpreter Storage Large Storage Unit Processor Signal Interpreter Weapon Assault Rifle Energy Gun Medium Laser Ballistic Gun Assault Rifle Launcher Rocket Launcher Build | -11 -10 -9 -9 -7 -6 ------- Run | Yrd Mat Mat Min Zio Pro Slots Evolved 2 | . . 2 . . . Power . | . . . . . . Propulsion 1 | . . 1 . . . Utility 1 | . . 1 . . . Weapon . | . . . . . . Parts Attached 21 | 6 2 9 1 1 2 Power 3 | 1 1 . . . 1 Engine 3 | 1 1 . . . 1 Core . | . . . . . . Reactor . | . . . . . . Propulsion 9 | 2 . 7 . . . Treads 6 | 2 . 4 . . . Leg 3 | . . 3 . . . Wheel . | . . . . . . Hover . | . . . . . . Flight . | . . . . . . Utility 5 | 1 1 2 . 1 . Device . | . . . . . . Storage 2 | 1 . 1 . . . Processor 3 | . 1 1 . 1 . Hackware . | . . . . . . Protection . | . . . . . . Artifact . | . . . . . . Weapon 4 | 2 . . 1 . 1 Energy Gun 1 | 1 . . . . . Energy Cannon . | . . . . . . Ballistic Gun 1 | 1 . . . . . Ballistic Cannon . | . . . . . . Launcher 2 | . . . 1 . 1 Special Weapon . | . . . . . . Impact Weapon . | . . . . . . Slashing Weapon . | . . . . . . Piercing Weapon . | . . . . . . Special Melee Weapon . | . . . . . . Unidentified Prototypes . | . . . . . . Parts Lost 6 | . . . . . 6 Power 1 | . . . . . 1 Propulsion 2 | . . . . . 2 Utility . | . . . . . . Weapon 3 | . . . . . 3 Highest Loss Streak 5 | . . . . . 5 To Critical Strikes . | . . . . . . Average Slot Usage (%) 98 | . 93 99 100 100 96 Engine 11 | . 14 11 11 11 10 Treads 30 | . 28 8 33 33 32 Leg 2 | . . 24 . . . Storage 11 | . 14 11 11 11 11 Processor 20 | . 7 22 22 22 22 Energy Gun 3 | . 14 11 8 . . Ballistic Gun 10 | . 14 11 11 11 5 Launcher 7 | . . . 2 11 13 Peak Build Rating 22 | 6 8 13 15 18 22 Average Rating 14 | 4 7 11 14 17 18 On Entrance 10 | . 6 8 13 15 18 Naked Turns . | . . . . . . Heaviest Build 31 | 14 14 27 29 29 31 Greatest Support 66 | 40 40 66 66 66 66 Greatest Overweight (x) 6 | 2 . . . . 6 Average Overweight (x) . | . . . . . . Largest Inventory Capacity 15 | 8 8 15 15 15 15 Average Capacity 13 | 7 8 14 15 15 15 Most Carried 15 | 4 8 15 15 15 15 Average Carried 13 | 2 6 10 14 14 14 Final Capacity 15 | 8 8 15 15 15 15 Final Carried 15 | 4 8 13 14 15 14 Class Distribution -------------------- 100% | Mutant Dominant Class ---------------- Mutant | -10/Materials Mutant | -9/Materials Mutant | -9/Mines Mutant | -7/Zion Mutant | -6/Proximity Caves Resources | -11 -10 -9 -9 -7 -6 ----------- Run | Yrd Mat Mat Min Zio Pro Matter Collected 535 | 242 98 68 97 10 20 Remotely . | . . . . . . Salvage Created 644 | . 226 135 283 . . Parts 40 | . 14 8 18 . . Haulers Intercepted . | . . . . . . Recyclers Shooed . | . . . . . . Parts Field Recycled . | . . . . . . Retrieved Matter . | . . . . . . Parts Self-Destructed . | . . . . . . Prevented 6 | . . . . . 6 Kills | -11 -10 -9 -9 -7 -6 ------- Run | Yrd Mat Mat Min Zio Pro Combat Hostiles Destroyed 12 | . 4 3 5 . . Guns 9 | . 4 3 2 . . AOE 3 | . . . 3 . . Classes Destroyed 5 | . 2 1 2 . . Tunneler 1 | . . . 1 . . Recycler 1 | . . . 1 . . Watcher 2 | . 2 . . . . Grunt 8 | . 4 1 3 . . Sentry 4 | . . 2 2 . . Best Kill Streak 5 | . 2 1 5 . . Combat Bots Only 3 | . 2 1 3 . . Max Kills in Single Turn 5 | . 1 1 5 . . Gunslinging . | . . . . . . Exploded 3 | . . . 3 . . Melee . | . . . . . . Uniques/NPCs Destroyed . | . . . . . . Combat | -11 -10 -9 -9 -7 -6 -------- Run | Yrd Mat Mat Min Zio Pro Hostile Shots Fired 112 | . 13 19 20 . 60 Missed 32 | . 4 4 7 . 17 Damage Taken 1541 | . 117 215 194 . 1015 Core 464 | . 42 73 47 . 302 Absorbed by Shields . | . . . . . . Core Remaining (%) 91 | 100 83 . . . . Volleys Fired 41 | . 20 9 9 . 3 Largest 2 | . 2 2 2 . 2 Hottest 70 | . 70 70 70 . 63 Shots Fired 78 | . 37 18 18 . 5 Gun 72 | . 37 18 17 . . Cannon . | . . . . . . Launcher 6 | . . . 1 . 5 Special . | . . . . . . Kinetic 38 | . 20 9 9 . . Thermal 34 | . 17 9 8 . . Explosive 6 | . . . 1 . 5 Electromagnetic . | . . . . . . Robot Hit Streak 17 | . 17 6 15 . 2 Robot Miss Streak 3 | . 3 1 1 . 1 Penetration Max . | . . . . . . Secondary Targets . | . . . . . . Shots Hit Robots 59 | . 27 14 15 . 3 Core Hits 35 | . 12 6 12 . 5 Critical Kills . | . . . . . . Critical Parts Destroyed . | . . . . . . Critical Strikes 5 | . 3 1 1 . . Burn 5 | . 3 1 1 . . Melee Attacks . | . . . . . . Impact . | . . . . . . Slashing . | . . . . . . Piercing . | . . . . . . Sneak Attacks . | . . . . . . Combat Hostiles . | . . . . . . Follow-up Attacks . | . . . . . . Damage Inflicted 1144 | . 339 168 366 . 271 Guns 672 | . 338 168 166 . . Cannons . | . . . . . . Explosions 467 | . . . 196 . 271 Melee . | . . . . . . Ramming 5 | . 1 . 4 . . Kinetic 338 | . 163 94 81 . . Thermal 334 | . 175 74 85 . . Explosive 467 | . . . 196 . 271 Electromagnetic . | . . . . . . Impact . | . . . . . . Slashing . | . . . . . . Piercing . | . . . . . . Highest Corruption . | . . . . . . Average Corruption . | . . . . . . Corruption Purged . | . . . . . . Corruption Blocked . | . . . . . . Overload Shots . | . . . . . . Overflow Damage 40 | . . . . . 40 Projectiles . | . . . . . . Explosions 40 | . . . . . 40 Melee . | . . . . . . Knockbacks . | . . . . . . Impact . | . . . . . . Kinetic . | . . . . . . Secondary . | . . . . . . Self-Inflicted Damage 189 | . . . 1 . 188 Shots 5 | . . . 1 . 4 Rammed 2 | . 1 . 1 . . Targets Rammed 2 | . 1 . 1 . . Kicked . | . . . . . . Crushed . | . . . . . . Highest Temperature 69 | . 69 54 45 . 33 Average Temperature 26 | . 23 25 34 . 21 Received Heat Transfer 408 | . 66 87 54 . 201 Siege Activations . | . . . . . . Robots Corrupted . | . . . . . . Combat Hostiles . | . . . . . . Parts Fried . | . . . . . . Impact Corruptions . | . . . . . . Robots Melted . | . . . . . . Combat Hostiles . | . . . . . . Parts Melted 3 | . 1 2 . . . Heat Transferred 1369 | . 740 296 333 . . Parts Sabotaged . | . . . . . . Parts Stolen . | . . . . . . Parts Stripped . | . . . . . . Power Chain Reactions . | . . . . . . Alert | -11 -10 -9 -9 -7 -6 ------- Run | Yrd Mat Mat Min Zio Pro Peak Influence 164 | . 145 164 124 . . Initial 63 | . . 12 63 . . Average 71 | . 72 80 79 . . Maximum Alert Level . | . . . . . . Low Security (%) 100 | 100 100 100 100 . . Level 1 . | . . . . . . Level 2 . | . . . . . . Level 3 . | . . . . . . Level 4 . | . . . . . . Level 5 . | . . . . . . High Security . | . . . . . . Max Security . | . . . . . . Squads Dispatched 1 | . 1 . . . . Investigation . | . . . . . . Extermination . | . . . . . . Reinforcement 1 | . 1 . . . . Assault . | . . . . . . Garrison . | . . . . . . Intercept . | . . . . . . Searches Triggered . | . . . . . . Construction Impeded . | . . . . . . Haulers Reinforced . | . . . . . . Active Scanning Responses . | . . . . . . Cargo Convoy Interrupts . | . . . . . . Stealth | -11 -10 -9 -9 -7 -6 --------- Run | Yrd Mat Mat Min Zio Pro Distress Signals 1 | . . 1 . . . Communications Jammed . | . . . . . . Distress Signals . | . . . . . . Times Spotted 22 | . 7 4 5 . 6 Peak Tracking Total 3 | . 2 3 3 . 3 Tactical Retreats 3 | . . 1 . . 2 Traps | -11 -10 -9 -9 -7 -6 ------- Run | Yrd Mat Mat Min Zio Pro Traps Triggered . | . . . . . . Indirectly . | . . . . . . Trap Hack Attempts . | . . . . . . Triggered . | . . . . . . Disarmed . | . . . . . . Reprogrammed . | . . . . . . Reused . | . . . . . . Traps Extracted . | . . . . . . Installed . | . . . . . . Triggered . | . . . . . . Machines | -11 -10 -9 -9 -7 -6 ---------- Run | Yrd Mat Mat Min Zio Pro Machines Disabled . | . . . . . . Max in Single Turn . | . . . . . . Machines Repaired . | . . . . . . Machines Dismantled . | . . . . . . Machines Sabotaged . | . . . . . . Overloaded Fab Kills . | . . . . . . Hacking | -11 -10 -9 -9 -7 -6 --------- Run | Yrd Mat Mat Min Zio Pro Machines Accessed 3 | . . 2 1 . . Terminals 3 | . . 2 1 . . Fabricators . | . . . . . . Repair Stations . | . . . . . . Recycling Units . | . . . . . . Scanalyzers . | . . . . . . Garrison Access . | . . . . . . Total Hacks 7 | . . 5 2 . . Successful 4 | . . 3 1 . . Failed 3 | . . 2 1 . . Catastrophic . | . . . . . . Database Lockouts . | . . . . . . Manual 2 | . . . . 2 . Terminals 7 | . . 5 2 . . Fabricators . | . . . . . . Repair Stations . | . . . . . . Recycling Units . | . . . . . . Scanalyzers . | . . . . . . Garrison Access . | . . . . . . Terminal Hacks 4 | . . 3 1 . . Record 1 | . . 1 . . . Alert Level 1 | . . 1 . . . Dispatch Records 1 | . . 1 . . . Zone Layout 1 | . . . 1 . . Fabricator Hacks . | . . . . . . Repair Station Hacks . | . . . . . . Recycling Unit Hacks . | . . . . . . Scanalyzer . | . . . . . . Garrison Access Hacks . | . . . . . . Unauthorized Hacks . | . . . . . . Terminals . | . . . . . . Fabricators . | . . . . . . Repair Stations . | . . . . . . Recycling Units . | . . . . . . Scanalyzers . | . . . . . . Garrison Access . | . . . . . . Data Cores Recovered . | . . . . . . Used . | . . . . . . Hacking Detections 1 | . . . 1 . . Full Trace Events . | . . . . . . Feedback Events . | . . . . . . Feedback Blocked . | . . . . . . Robot Schematics Acquired 3 | . . . . 3 . Robots Built . | . . . . . . Authchips . | . . . . . . Time . | . . . . . . Total Robot Build Rating . | . . . . . . Part Schematics Acquired 15 | . . . . 15 . Parts Built . | . . . . . . Authchips . | . . . . . . Time . | . . . . . . Total Part Build Rating . | . . . . . . Parts Repaired . | . . . . . . Time . | . . . . . . Parts Recycled . | . . . . . . Recycled Matter . | . . . . . . Retrieved Matter . | . . . . . . Retrieved Components . | . . . . . . Parts Scanalyzed . | . . . . . . Part Schematics Acquired . | . . . . . . Parts Damaged . | . . . . . . Bothacking | -11 -10 -9 -9 -7 -6 ------------ Run | Yrd Mat Mat Min Zio Pro Used RIF Installer . | . . . . . . Robots Hacked . | . . . . . . Non-combat . | . . . . . . Combat . | . . . . . . Robot Hacks Applied . | . . . . . . Relay Couplers Released . | . . . . . . Fabnet Peak Effective % . | . . . . . . Robots Rewired . | . . . . . . Allies Hacked . | . . . . . . Hacks Repelled . | . . . . . . Allies | -11 -10 -9 -9 -7 -6 -------- Run | Yrd Mat Mat Min Zio Pro Total Allies 4 | . . . . 4 . Largest Group 4 | . . . . 4 4 Highest-Rated Group 153 | . . . . 153 153 Highest-Rated Ally 40 | . . . . 40 40 Total Orders . | . . . . . . Ally Attacks 16 | . . . . . 16 Total Damage 317 | . . . . . 317 Kills . | . . . . . . Allies Corrupted . | . . . . . . Allies Melted 1 | . . . . . 1 Intel | -11 -10 -9 -9 -7 -6 ------- Run | Yrd Mat Mat Min Zio Pro Robot Analysis Total . | . . . . . . Derelict Logs Recovered 3 | . . . 1 2 . Drone Launches . | . . . . . . Drone Recoveries . | . . . . . . Exploration | -11 -10 -9 -9 -7 -6 ------------- Run | Yrd Mat Mat Min Zio Pro Turns Passed 4028 | 109 452 335 551 2000 581 Spaces Moved 2334 | 63 192 213 319 1224 323 Core 15 | 12 . . . . 3 Treads 2145 | 51 192 39 319 1224 320 Legs 174 | . . 174 . . . Wheels . | . . . . . . Hover . | . . . . . . Flight . | . . . . . . Fastest Speed 50 | 50 160 120 160 160 160 Average Speed 156 | 150 160 127 160 160 161 Slowest Speed 350 | 160 160 160 160 160 350 Overloaded Moves . | . . . . . . Propulsion Burnouts . | . . . . . . Robots Hopped . | . . . . . . Cave-ins Triggered . | . . . . . . Exploration Rate (%) 44 | 5 29 28 60 89 53 Regions Visited 5 Branch Regions 3 Pre-discovered Areas 1 | . . . 1 . . Known Exits Taken 2 | . . 1 . 1 . Unknown Exits Taken 3 | 1 1 . 1 . . Scrap Searched 3 | . . . . 2 1 Spaces Dug . | . . . . . . Terrain Destroyed 35 | . . . 11 . 24 Melee . | . . . . . . Projectile . | . . . . . . AOE 35 | . . . 11 . 24 Terrain Rammed . | . . . . . . Walls Destroyed . | . . . . . . Machines Disabled . | . . . . . . Actions | -11 -10 -9 -9 -7 -6 --------- Run | Yrd Mat Mat Min Zio Pro Total 2629 | 78 300 262 342 1267 380 Wait 178 | . 77 10 10 36 45 Move 2329 | 62 191 212 318 1223 323 Hop . | . . . . . . Pick Up 39 | 10 7 13 2 4 3 Fast Attach . | . . . . . . Attach 19 | 6 2 7 1 1 2 Detach 5 | . . 3 . 1 1 Swap 2 | . . 2 . . . Drop 14 | . 2 6 1 2 3 Fire 41 | . 20 9 9 . 3 Melee . | . . . . . . Ram . | . . . . . . Kick . | . . . . . . Crush 2 | . 1 . 1 . . Escape Stasis . | . . . . . . Rewire . | . . . . . . Trap . | . . . . . . Miscellaneous . | . . . . . . Route ------- -11/Scrapyard -10/Materials -9/Materials -9/Mines (discovered 3 exits: *Mat x2 / *Zio) -7/Zion -6/Proximity Caves History --------- Turn | Location | Event 17 | -11/Scrapyard | Discovered new exit (range 16) 110 | -11/Scrapyard | Entered Materials 301 | -10/Materials | Build established: Mutant 527 | -10/Materials | Discovered new exit (range 18) 562 | -10/Materials | Entered another Materials area 562 | -9/Materials | Evolved 2 slots: Propulsion x1, Utility x1 850 | -9/Materials | Discovered new exit (range 17) 895 | -9/Materials | Identified exit to Mines 897 | -9/Materials | Entered Mines 898 | -9/Mines | Learned location of Storage (-7) 925 | -9/Mines | Received a Rocket Launcher from a helpful Derelict 965 | -9/Mines | Discovered new exit (range 9) 976 | -9/Mines | Identified exit to Materials 1376 | -9/Mines | Learned location of 1 exit from Materials 1446 | -9/Mines | A Derelict revealed a hidden shortcut to a safe place 1448 | -9/Mines | Discovered exit to Materials (range 6) 1448 | -9/Mines | Entered Zion 1652 | -7/Zion | Found Prototype Processor 2300 | -7/Zion | Met Imprinter 2336 | -7/Zion | Imprinted 2339 | -7/Zion | Declared Zion's savior 3009 | -7/Zion | Identified exit to Proximity Caves 3026 | -7/Zion | Learned Factory emergency access door positions 3386 | -7/Zion | Given the Hacking Drone Bay 3402 | -7/Zion | Found Prototype Device 3448 | -7/Zion | Entered Proximity Caves 3448 | -6/Proximity Caves | Accompanied by 4 allies 3699 | -6/Proximity Caves | Spotted B-75 Beast 3781 | -6/Proximity Caves | Lost 3 allies 3886 | -6/Proximity Caves | Received a Behemoth hack from an annoying Tinkerer 4012 | -6/Proximity Caves | Core integrity fell below 50% 4023 | -6/Proximity Caves | Core integrity fell below 20% 4029 | -6/Proximity Caves | Destroyed by L-41 Fighter with Axe Last Messages --------------- 03903_ PR-JQ9(c) destroyed. 03933_ Searching scrap... 03933_ Found Carbon-fiber Leg. 03933_ Found Mak. Power Source. 03933_ Found Mak. Axe. 03933_ Found 67 Matter. 03935_ Dropped Lgt. Ion Engine. 03937_ Acquired Mak. Power Source. 03939_ Acquired 10 matter. 04010_ Lgt. Treads severed. 04013_ Mak. Power Source destroyed. 04013_ Destroyed Mak. Power Source. 04014_ Grenade Launcher destroyed. 04016_ The unstable cave ceiling collapses. 04016_ Rocket Launcher destroyed. 04016_ Destroyed Rocket Launcher. 04016_ Imp. Treads destroyed. 04016_ Destroyed Imp. Treads. 04019_ Imp. Treads destroyed. 04019_ Critical hit (Burn: +37). Map ----- +----------------------------------------------------+ | ?????????????## " #??????????????# | | ????????????## """"" ##?????????????# | | ???????????## """"" #?????????????# | | ???????????# " "" ## #????????????# | | ???????????# " " #?# #??????????## | | ##????##???# ## ###" #??# #???????#### | | ##??? #???######## ####" #???###??????## # | | #### ##???????## #????????????# # | | #???????# #????????????# | | ????????# ### ##### #????????????# | | ?????????# #??## ##??# ##########???# | | #??????##### ???## ##?# ##??# | | #??????## ##???# #?# #### | | #?????## ##???# #?########## ## ## | | #?????# #???# #?????????## ### | | #?????# ##??# ##?????????# ### | | ######?# #??# #????????# ### | | # #### #### ##???????# #### | | ## ## ##??????## ###??# | | ?## ## #???###?# #?#### | | #?########## #### #??# ## #?# % | | #?????????# #??## ### ##### ##?# | | #?????????# #???# ?????# #### % | | ##????????? #???####### #????# | | #?????????? ??????#### # ##????# | | #????????? ?????## # #@ #####?????#### ## | | ????????? ##?????# l #????????????# #### | | #???????? #??????## #????????????# #??? | | #??????? #?????### ##??????????## #???# | | ??????? ?????##" ##????????## #???? | | ??????#?????# gg ##???????# ##??? | | ## ???????????#""" #?#####?# #??? | | ??????????????# "#" ### #### ##??? | | ??????????????##?## # #?## ##???? | | ??????????????????### #??# #????? | | ???????????????????# ##?# #????? | | ??????????????????## ### ### #????? | | ??????????????????# ## ##?# #????? | | ??????????????????# ### ##??# #????? | | ??????????????????# ##??# ##??# #######????? | | ?????????????????## ##??# #### ####### | | ?????????????????# #### # *% | | ?????????????????# /= #?? | | ?????????????????##### ### ######### #?? | | ?????????????????????#### #?## ##????????????? | | ????????????????????????# #??####?????????????? | | ????????????????????# ##???????????????????? | | ???????????????????# #????????????????????? | | ???????????????????####### #????????????????????? | | ?????????????????????????# #????????????????????? | +----------------------------------------------------+ Best States ------------- Heat Dissipation 28 Energy Generation 15 Energy Capacity 250 Matter Stores 300 Matter Capacity 300 Sight Range 18 Terrain Scan Density 210 Evasion (%) 55 Recoil Reduction 3 Item Schematics ----------------- Imp. Cooling System | -7/Zion | Archive Hpw. Shock Rifle | -7/Zion | Archive Adv. ECM Suite | -7/Zion | Archive Imp. Target Analyzer | -7/Zion | Archive Core Analyzer | -7/Zion | Archive Magnetic Acceleration Cannon | -7/Zion | Archive Arc Projector | -7/Zion | Archive Hrd. Heavy Armor Plating | -7/Zion | Archive Phase Cannon | -7/Zion | Archive Imp. Weapon Cycler | -7/Zion | Archive Coil Gun | -7/Zion | Archive Imp. Field Recycling Unit | -7/Zion | Archive Imp. Shock Absorption System | -7/Zion | Archive Corruption Screen | -7/Zion | Archive Hvy. Pick | -7/Zion | Archive Robot Schematics ------------------ A-02 Transporter | -7/Zion | Archive O-24 Administrator | -7/Zion | Archive S-27 Virus | -7/Zion | Archive Fabricated ------------ Nothing Alien Tech Used ----------------- None Achievements -------------- The One Challenges ------------ None Game ------ Seed ZhirovVampiricGravjet Manual? 0 Play Time 00:50:09 Cumulative 6.7 hours Start 2024.09.09 @ 18:17:53 End 2024.09.09 @ 21:23:54 Sessions 1 Manual Loads 0 Difficulty Rogue Special Mode None Game No. 17 Rogue 17 Adventurer 0 Explorer 0 Win Type - Total 0 Types 0/0/0/0/0/0/0/0/0 Lore% 10 Gallery% 7 Achievement% 12 Wizard Run 0 Options --------- Layout 0 ASCII 0 Keyboard 1 Movement Numpad Keybinds 0 Fullscreen 1 Font 18/SmallcapsGlow Map View 76x50 Zoom Use 1% Tactical HUD 1 Map Filters NONE Filters NONE Steam 1 RUN: dfb81010-078b-416e-b27d-82c75ae7771e